fUSD/lending_fUSD_20240318
["ID","MTS","AMOUNT","RATE_DAILY","PERIOD"]
[319430855,1710736279353,-500.0,0.00031,7]
[319430856,1710736279362,-500.0,0.00031,7]
[319430857,1710736279371,-500.0,0.00031,7]
[319430858,1710736279380,-500.0,0.00031,7]
[319430859,1710736279389,-500.0,0.00031,7]
[319430860,1710736279398,-500.0,0.00031,7]
[319430861,1710736279535,-500.0,0.00031,7]
[319430862,1710736279544,-500.0,0.00031,7]
[319430863,1710736279553,-500.0,0.00031,7]
[319430864,1710736279563,-500.0,0.00031,7]
[319430865,1710736279572,-500.0,0.00031,7]
[319430866,1710736279581,-500.0,0.00031,7]
[319430867,1710736279590,-152.983073,0.00031,7]
[319430868,1710736279599,-500.0,0.00031,2]
[319430869,1710736279607,-500.0,0.00031,2]
[319430870,1710736279616,-500.0,0.00031,2]
[319430871,1710736279626,-500.0,0.00031,2]
[319430872,1710736279634,-500.0,0.00031,2]
[319430873,1710736279644,-500.0,0.00031,2]
[319430874,1710736279653,-500.0,0.00031,2]
[319430875,1710736279662,-500.0,0.00031,2]
[319430876,1710736279671,-500.0,0.00031,2]
[319430877,1710736279680,-500.0,0.00031,2]
[319430878,1710736279690,-500.0,0.00031,2]
[319430879,1710736279699,-500.0,0.00031,2]
[319430880,1710736279708,-500.0,0.00031,2]
[319430881,1710736279717,-500.0,0.00031,2]
[319430882,1710736279726,-500.0,0.00031,2]
[319430883,1710736279738,-500.0,0.00031,2]
[319430884,1710736279751,-500.0,0.00031,2]
[319430885,1710736279760,-500.0,0.00031,2]
[319430886,1710736279770,-500.0,0.00031,2]
[319430887,1710736279780,-500.0,0.00031,2]
[319430888,1710736279789,-500.0,0.00031,2]
[319430889,1710736279798,-500.0,0.00031,2]
[319430890,1710736279807,-238.72,0.00031,2]
[319430891,1710736279817,-151.0,0.00031,7]
[319430892,1710736279827,-255.701783,0.00031,7]
[319430893,1710736279837,-1641.989312,0.00031,3]
[319430894,1710736279846,-154.830592,0.00031,7]
[319430895,1710736279856,-154.830592,0.00031,7]
[319430896,1710736279866,-174.17123,0.00031,7]
[319430897,1710736279875,-174.17123,0.00031,7]
[319430898,1710736279884,-151.0,0.00031,7]
[319430899,1710736279895,-151.0,0.00031,7]
[319430900,1710736279905,-151.01441,0.00031,7]
[319430901,1710736279914,-151.0,0.00031,7]
[319430902,1710736279924,-154.056552,0.00031,7]
[319430903,1710736279933,-154.266206,0.00031,7]
[319430904,1710736279942,-152.02325,0.00031,7]
[319430905,1710736279952,-293.530917,0.00031,7]
[319430906,1710736279961,-1021.0,0.00031,2]
[319430907,1710736279971,-172.04149,0.0003112,2]
[319430908,1710736279982,-151.031811,0.00031198,5]
[319430909,1710736279991,-151.031811,0.00031198,4]
[319430910,1710736280000,-1000.0,0.00031232,10]
[319430911,1710736280010,-500.0,0.00031232,4]
[319430912,1710736280019,-500.0,0.00031232,4]
[319430913,1710736280028,-500.0,0.00031232,4]
[319430914,1710736280038,-500.0,0.00031232,4]
[319430915,1710736280047,-500.0,0.00031232,4]
[319430916,1710736280059,-500.0,0.00031232,4]
[319430917,1710736280069,-500.0,0.00031232,4]
[319430918,1710736280079,-500.0,0.00031232,4]
[319430919,1710736280088,-479.27737453,0.00031232,4]
[319430920,1710736280098,-500.0,0.00031232,4]
[319430921,1710736280108,-500.0,0.00031232,4]
[319430922,1710736280118,-500.0,0.00031232,4]
[319430923,1710736280128,-500.0,0.00031232,4]
[319430924,1710736280137,-571.11424914,0.00031232,4]
[319430925,1710736280147,-500.0,0.00031232,4]
[319430926,1710736280156,-500.0,0.00031232,4]
[319430927,1710736280165,-500.0,0.00031232,4]
[319430928,1710736280175,-510.0,0.00031232,120]
[319430929,1710736280184,-187.1634145,0.00031232,4]
[319430930,1710736280194,-500.0,0.00031232,4]
[319430931,1710736280204,-500.0,0.00031232,4]
[319430932,1710736280214,-500.0,0.00031232,4]
[319430933,1710736280224,-500.0,0.00031232,4]
[319430934,1710736280237,-500.0,0.00031232,4]
[319430935,1710736280248,-500.0,0.00031232,4]
[319430936,1710736280259,-500.0,0.00031232,4]
[319430937,1710736280270,-500.0,0.00031232,4]
[319430938,1710736280280,-500.0,0.00031232,4]
[319430939,1710736280290,-500.0,0.00031232,4]
[319430940,1710736280300,-500.0,0.00031232,4]
[319430941,1710736280310,-500.0,0.00031232,4]
[319430942,1710736280320,-500.0,0.00031232,4]
[319430943,1710736280329,-500.0,0.00031232,4]
[319430944,1710736280339,-500.0,0.00031232,4]
[319430945,1710736280349,-500.0,0.00031232,4]
[319430946,1710736280358,-514.88658412,0.00031232,4]
[319430947,1710736280368,-500.0,0.00031232,4]
[319430948,1710736280377,-892.35,0.00031232,4]
[319430949,1710736280391,-500.0,0.00031232,4]
[319430950,1710736280411,-588.99,0.00031232,4]
[319430951,1710736280429,-500.0,0.00031232,4]
[319430952,1710736280449,-500.0,0.00031232,4]
[319430953,1710736280464,-500.0,0.00031232,4]
[319430954,1710736280483,-500.0,0.00031232,4]
[319430955,1710736280501,-500.0,0.00031232,4]
[319430956,1710736280518,-565.38612862,0.00031232,4]
[319430957,1710736280536,-500.0,0.00031232,4]
[319430958,1710736280554,-500.0,0.00031232,4]
[319430959,1710736280574,-500.0,0.00031232,4]
[319430960,1710736280592,-500.0,0.00031232,4]
[319430961,1710736280605,-500.0,0.00031232,4]
[319430962,1710736280624,-752.67,0.00031232,4]
[319430963,1710736280637,-500.0,0.00031232,4]
[319430964,1710736280653,-500.0,0.00031232,4]
[319430965,1710736280668,-500.0,0.00031232,4]
[319430966,1710736280684,-500.0,0.00031232,4]
[319430967,1710736280699,-500.0,0.00031232,4]
[319430968,1710736280715,-500.0,0.00031232,4]
[319430969,1710736280734,-500.0,0.00031232,4]
[319430970,1710736280750,-500.0,0.00031232,4]
[319430971,1710736280767,-500.0,0.00031232,4]
[319430972,1710736280783,-500.0,0.00031232,4]
[319430973,1710736280799,-500.0,0.00031232,4]
[319430974,1710736280817,-311.8592775,0.00031232,4]
[319430975,1710736280834,-500.0,0.00031232,4]
[319430976,1710736280849,-500.0,0.00031232,4]
[319430977,1710736280864,-869.9,0.00031232,4]
[319430978,1710736280880,-500.0,0.00031232,4]
[319430979,1710736280896,-1373.45,0.00031232,4]
[319430980,1710736280912,-536.23,0.00031232,4]
[319430981,1710736280929,-500.0,0.00031232,4]
[319430982,1710736280944,-500.0,0.00031232,4]
[319430983,1710736280960,-1105.28,0.00031232,4]
[319430984,1710736280976,-500.0,0.00031232,4]
[319430985,1710736280992,-500.0,0.00031232,4]
[319430986,1710736281009,-500.0,0.00031232,4]
[319430987,1710736281023,-500.0,0.00031232,4]
[319430988,1710736281039,-500.0,0.00031232,4]
[319430989,1710736281055,-500.0,0.00031232,4]
[319430990,1710736281070,-500.0,0.00031232,4]
[319430991,1710736281085,-500.0,0.00031232,4]
[319430992,1710736281100,-640.487866,0.00031232,4]
[319430993,1710736281115,-622.18,0.00031232,4]
[319430994,1710736281129,-500.0,0.00031232,4]
[319430995,1710736281144,-500.0,0.00031232,4]
[319430996,1710736281159,-500.0,0.00031232,4]
[319430997,1710736281174,-500.0,0.00031232,4]
[319430998,1710736281189,-500.0,0.00031232,4]
[319430999,1710736281205,-500.0,0.00031232,4]
[319431000,1710736281220,-500.0,0.00031232,4]
[319431001,1710736281238,-500.0,0.00031232,4]
[319431002,1710736281253,-500.0,0.00031232,4]
[319431003,1710736281268,-500.0,0.00031232,4]
[319431004,1710736281284,-260.12608526,0.00031232,4]
[319431005,1710736281303,-501.4,0.00031232,4]
[319431006,1710736281320,-500.0,0.00031232,4]
[319431007,1710736281336,-2231.25,0.00031232,4]
[319431008,1710736281352,-503.69540137,0.00031232,4]
[319431009,1710736281367,-500.0,0.00031232,4]
[319431010,1710736281383,-591.90798359,0.00031232,4]
[319431011,1710736281399,-500.0,0.00031232,4]
[319431012,1710736281415,-500.0,0.00031232,4]
[319431013,1710736281430,-500.0,0.00031232,4]
[319431014,1710736281445,-735.9,0.00031232,4]
[319431015,1710736281459,-500.0,0.00031232,4]
[319431016,1710736281475,-500.0,0.00031232,4]
[319431017,1710736281492,-500.0,0.00031232,4]
[319431018,1710736281507,-500.0,0.00031232,4]
[319431019,1710736281523,-500.0,0.00031232,4]
[319431020,1710736281538,-500.0,0.00031232,4]
[319431021,1710736281552,-500.0,0.00031232,4]
[319431022,1710736281568,-500.0,0.00031232,4]
[319431023,1710736281582,-943.04,0.00031232,4]
[319431024,1710736281598,-500.0,0.00031232,4]
[319431025,1710736281613,-500.0,0.00031232,4]
[319431026,1710736281627,-500.0,0.00031232,4]
[319431027,1710736281642,-500.0,0.00031232,4]
[319431028,1710736281656,-500.0,0.00031232,4]
[319431029,1710736281670,-500.0,0.00031232,4]
[319431030,1710736281683,-500.0,0.00031232,4]
[319431031,1710736281697,-503.91,0.00031232,4]
[319431032,1710736281712,-500.0,0.00031232,4]
[319431033,1710736281727,-500.0,0.00031232,4]
[319431034,1710736281901,-1566.14,0.00031232,4]
[319431035,1710736281927,-500.0,0.00031232,4]
[319431036,1710736281937,-500.0,0.00031232,4]
[319431037,1710736281946,-500.0,0.00031232,4]
[319431038,1710736281955,-500.0,0.00031232,4]
[319431039,1710736281964,-500.12946252,0.00031232,4]
[319431040,1710736281973,-500.0,0.00031232,4]
[319431041,1710736281983,-500.0,0.00031232,4]
[319431042,1710736281992,-500.0,0.00031232,4]
[319431043,1710736282001,-500.0,0.00031232,4]
[319431044,1710736282011,-500.0,0.00031232,4]
[319431045,1710736282020,-500.0,0.00031232,4]
[319431046,1710736282029,-507.78,0.00031232,4]
[319431047,1710736282039,-500.0,0.00031232,4]
[319431048,1710736282048,-500.0,0.00031232,4]
[319431049,1710736282058,-500.0,0.00031232,4]
[319431050,1710736282067,-500.0,0.00031232,4]
[319431051,1710736282076,-500.0,0.00031232,4]
[319431052,1710736282085,-500.0,0.00031232,4]
[319431053,1710736282095,-500.0,0.00031232,4]
[319431054,1710736282104,-292.06068872,0.00031232,4]
[319431055,1710736282114,-500.0,0.00031232,4]
[319431056,1710736282123,-555.92059413,0.00031232,4]
[319431057,1710736282133,-500.0,0.00031232,4]
[319431058,1710736282142,-500.0,0.00031232,4]
[319431059,1710736282151,-500.0,0.00031232,4]
[319431060,1710736282160,-500.0,0.00031232,4]
[319431061,1710736282169,-832.17,0.00031232,4]
[319431062,1710736282178,-500.0,0.00031232,4]
[319431063,1710736282187,-500.0,0.00031232,4]
[319431064,1710736282197,-500.0,0.00031232,4]
[319431065,1710736282206,-500.0,0.00031232,4]
[319431066,1710736282215,-500.0,0.00031232,4]
[319431067,1710736282224,-500.0,0.00031232,4]
[319431068,1710736282234,-500.0,0.00031232,4]
[319431069,1710736282243,-504.62697311,0.00031232,4]
[319431070,1710736282252,-500.0,0.00031232,4]
[319431071,1710736282261,-1123.76,0.00031232,4]
[319431072,1710736282270,-600.34,0.00031232,4]
[319431073,1710736282279,-710.22,0.00031232,4]
[319431074,1710736282287,-571.59693648,0.00031232,4]
[319431075,1710736282296,-500.0,0.00031232,4]
[319431076,1710736282305,-500.0,0.00031232,4]
[319431077,1710736282315,-500.0,0.00031232,4]
[319431078,1710736282324,-500.0,0.00031232,4]
[319431079,1710736282333,-500.0,0.00031232,4]
[319431080,1710736282342,-500.0,0.00031232,4]
[319431081,1710736282352,-500.0,0.00031232,4]
[319431082,1710736282361,-1438.95,0.00031232,4]
[319431083,1710736282370,-1027.19,0.00031232,4]
[319431084,1710736282379,-500.0,0.00031232,4]
[319431085,1710736282388,-500.0,0.00031232,4]
[319431086,1710736282397,-624.55,0.00031232,4]
[319431087,1710736282406,-500.0,0.00031232,4]
[319431088,1710736282417,-302.79751023,0.00031232,4]
[319431089,1710736282437,-500.0,0.00031232,4]
[319431090,1710736282459,-160.3059425,0.00031232,4]
[319431091,1710736282480,-500.0,0.00031232,4]
[319431092,1710736282500,-205.32353784,0.00031232,4]
[319431093,1710736282521,-595.77,0.00031232,4]
[319431094,1710736282543,-1826.25,0.00031232,4]
[319431095,1710736282566,-644.04705586,0.00031232,4]
[319431096,1710736282589,-500.0,0.00031232,4]
[319431097,1710736282611,-500.0,0.00031232,4]
[319431098,1710736282620,-500.0,0.00031232,4]
[319431099,1710736282629,-500.0,0.00031232,4]
[319431100,1710736282638,-931.82,0.00031232,4]
[319431101,1710736282647,-500.0,0.00031232,4]
[319431102,1710736282656,-2156.89,0.00031232,4]
[319431103,1710736282665,-501.11871213,0.00031232,4]
[319431104,1710736282674,-626.3,0.00031232,4]
[319431105,1710736282683,-500.0,0.00031232,4]
[319431106,1710736282692,-500.0,0.00031232,4]
[319431107,1710736282701,-500.0,0.00031232,4]
[319431108,1710736282710,-504.34624857,0.00031232,4]
[319431109,1710736282719,-500.0,0.00031232,4]
[319431110,1710736282731,-500.0,0.00031232,4]
[319431111,1710736282741,-500.0,0.00031232,4]
[319431112,1710736282750,-500.0,0.00031232,4]
[319431113,1710736282760,-500.0,0.00031232,4]
[319431114,1710736282770,-337.96927303,0.00031232,4]
[319431115,1710736282780,-504.90991282,0.00031232,4]
[319431116,1710736282789,-2005.2,0.00031232,4]
[319431117,1710736282798,-500.0,0.00031232,4]
[319431118,1710736282807,-508.56059536,0.00031232,4]
[319431119,1710736282816,-500.0,0.00031232,4]
[319431120,1710736282825,-500.0,0.00031232,4]
[319431121,1710736282834,-500.0,0.00031232,4]
[319431122,1710736282844,-500.0,0.00031232,4]
[319431123,1710736282853,-2463.3,0.00031232,4]
[319431124,1710736282862,-500.0,0.00031232,4]
[319431125,1710736282871,-500.0,0.00031232,4]
[319431126,1710736282880,-500.0,0.00031232,4]
[319431127,1710736282889,-500.0,0.00031232,4]
[319431128,1710736282898,-500.0,0.00031232,4]
[319431129,1710736282908,-2094.29,0.00031232,4]
[319431130,1710736282918,-911.56,0.00031232,4]
[319431131,1710736282928,-500.0,0.00031232,4]
[319431132,1710736282937,-2639.58,0.00031232,4]
[319431133,1710736282946,-500.0,0.00031232,4]
[319431134,1710736282956,-500.0,0.00031232,4]
[319431135,1710736282965,-500.0,0.00031232,4]
[319431136,1710736282975,-500.0,0.00031232,4]
[319431137,1710736282985,-500.0,0.00031232,4]
[319431138,1710736282995,-500.0,0.00031232,4]
[319431139,1710736283004,-500.0,0.00031232,4]
[319431140,1710736283013,-523.09,0.00031232,4]
[319431141,1710736283022,-500.0,0.00031232,4]
[319431142,1710736283032,-3465.75,0.00031232,4]
[319431143,1710736283041,-500.0,0.00031232,4]
[319431144,1710736283050,-500.0,0.00031232,4]
[319431145,1710736283059,-3439.16,0.00031232,4]
[319431146,1710736283069,-1239.79,0.00031232,4]
[319431147,1710736283078,-500.0,0.00031232,4]
[319431148,1710736283087,-865.02,0.00031232,4]
[319431149,1710736283097,-770.0,0.00031232,4]
[319431150,1710736283107,-500.0,0.00031232,4]
[319431151,1710736283116,-1050.75,0.00031232,4]
[319431152,1710736283125,-500.0,0.00031232,4]
[319431153,1710736283134,-639.93,0.00031232,4]
[319431154,1710736283143,-500.0,0.00031232,4]
[319431155,1710736283152,-3922.62,0.00031232,4]
[319431156,1710736283161,-553.22003659,0.00031232,4]
[319431157,1710736283170,-500.0,0.00031232,4]
[319431158,1710736283180,-500.0,0.00031232,4]
[319431159,1710736283189,-500.0,0.00031232,4]
[319431160,1710736283201,-500.0,0.00031232,4]
[319431161,1710736283222,-953.43,0.00031232,4]
[319431162,1710736283243,-611.87,0.00031232,4]
[319431163,1710736283264,-500.0,0.00031232,4]
[319431164,1710736283283,-798.65,0.00031232,4]
[319431165,1710736283296,-2710.57,0.00031232,4]
[319431166,1710736283311,-507.72382196,0.00031232,4]
[319431167,1710736283325,-500.0,0.00031232,4]
[319431168,1710736283339,-500.0,0.00031232,4]
[319431169,1710736283558,-2948.74,0.00031232,4]
[319431170,1710736283568,-504.29608409,0.00031232,4]
[319431171,1710736283578,-500.0,0.00031232,4]
[319431172,1710736283588,-500.0,0.00031232,4]
[319431173,1710736283597,-539.71,0.00031232,4]
[319431174,1710736283606,-500.0,0.00031232,4]
[319431175,1710736283616,-500.0,0.00031232,4]
[319431176,1710736283626,-500.0,0.00031232,4]
[319431177,1710736283635,-500.0,0.00031232,4]
[319431178,1710736283647,-500.0,0.00031232,4]
[319431179,1710736283663,-500.0,0.00031232,4]
[319431180,1710736283672,-500.0,0.00031232,4]
[319431181,1710736283682,-500.0,0.00031232,4]
[319431182,1710736283691,-155.23957777,0.00031232,4]
[319431183,1710736283700,-1200.43,0.00031232,4]
[319431184,1710736283709,-500.0,0.00031232,4]
[319431185,1710736283718,-500.0,0.00031232,4]
[319431186,1710736283727,-500.0,0.00031232,4]
[319431187,1710736283737,-289.14160599,0.00031232,4]
[319431188,1710736283750,-500.0,0.00031232,4]
[319431189,1710736283760,-500.0,0.00031232,4]
[319431190,1710736283769,-500.0,0.00031232,4]
[319431191,1710736283778,-500.0,0.00031232,4]
[319431192,1710736283789,-593.8,0.00031232,4]
[319431193,1710736283799,-646.93,0.00031232,4]
[319431194,1710736283808,-3040.38,0.00031232,4]
[319431195,1710736283818,-912.86,0.00031232,4]
[319431196,1710736283828,-504.09221234,0.00031232,4]
[319431197,1710736283839,-521.56,0.00031232,4]
[319431198,1710736283849,-500.0,0.00031232,4]
[319431199,1710736283861,-500.0,0.00031232,4]
[319431200,1710736283870,-2075.71,0.00031232,4]
[319431201,1710736283880,-500.0,0.00031232,4]
[319431202,1710736283890,-1026.81,0.00031232,4]
[319431203,1710736283899,-500.0,0.00031232,4]
[319431204,1710736283909,-505.88457016,0.00031232,4]
[319431205,1710736283919,-788.56,0.00031232,4]
[319431206,1710736283929,-500.0,0.00031232,4]
[319431207,1710736283938,-500.0,0.00031232,4]
[319431208,1710736283947,-500.0,0.00031232,4]
[319431209,1710736283956,-615.18,0.00031232,4]
[319431210,1710736283965,-500.0,0.00031232,4]
[319431211,1710736283974,-500.0,0.00031232,4]
[319431212,1710736283983,-1506.09,0.00031232,4]
[319431213,1710736283993,-500.0,0.00031232,4]
[319431214,1710736284002,-500.0,0.00031232,4]
[319431215,1710736284012,-501.5898863,0.00031232,4]
[319431216,1710736284022,-502.88316632,0.00031232,4]
[319431217,1710736284033,-500.0,0.00031232,4]
[319431218,1710736284043,-500.0,0.00031232,4]
[319431219,1710736284053,-500.0,0.00031232,4]
[319431220,1710736284062,-1442.43,0.00031232,4]
[319431221,1710736284071,-500.0,0.00031232,4]
[319431222,1710736284081,-500.0,0.00031232,4]
[319431223,1710736284091,-4584.29,0.00031232,4]
[319431224,1710736284101,-1419.83,0.00031232,4]
[319431225,1710736284110,-1416.16,0.00031232,4]
[319431226,1710736284120,-500.0,0.00031232,4]
[319431227,1710736284130,-1501.08,0.00031232,4]
[319431228,1710736284140,-500.0,0.00031232,4]
[319431229,1710736284149,-564.58351657,0.00031232,4]
[319431230,1710736284158,-500.0,0.00031232,4]
[319431231,1710736284168,-1326.91,0.00031232,4]
[319431232,1710736284178,-500.0,0.00031232,4]
[319431233,1710736284188,-500.0,0.00031232,4]
[319431234,1710736284197,-500.0,0.00031232,4]
[319431235,1710736284206,-500.0,0.00031232,4]
[319431236,1710736284216,-1157.88,0.00031232,4]
[319431237,1710736284225,-500.0,0.00031232,4]
[319431238,1710736284235,-500.0,0.00031232,4]
[319431239,1710736284244,-522.83,0.00031232,4]
[319431240,1710736284253,-884.27,0.00031232,4]
[319431241,1710736284263,-1901.89,0.00031232,4]
[319431242,1710736284272,-500.0,0.00031232,4]
[319431243,1710736284281,-718.57,0.00031232,4]
[319431244,1710736284290,-500.0,0.00031232,4]
[319431245,1710736284300,-500.0,0.00031232,4]
[319431246,1710736284310,-500.0,0.00031232,4]
[319431247,1710736284320,-216.222,0.00031232,4]
[319431248,1710736284330,-626.44,0.00031232,4]
[319431249,1710736284339,-1481.56,0.00031232,4]
[319431250,1710736284348,-500.0,0.00031232,4]
[319431251,1710736284357,-820.19,0.00031232,4]
[319431252,1710736284367,-616.04,0.00031232,4]
[319431253,1710736284376,-661.6,0.00031232,4]
[319431254,1710736284386,-179.74009792,0.00031232,4]
[319431255,1710736284395,-807.78,0.00031232,4]
[319431256,1710736284405,-576.56,0.00031232,4]
[319431257,1710736284423,-500.0,0.00031232,4]
[319431258,1710736284432,-500.0,0.00031232,4]
[319431259,1710736284442,-1258.08,0.00031232,4]
[319431260,1710736284452,-500.0,0.00031232,4]
[319431261,1710736284461,-534.32289432,0.00031232,4]
[319431262,1710736284471,-922.75,0.00031232,4]
[319431263,1710736284480,-500.0,0.00031232,4]
[319431264,1710736284491,-500.0,0.00031232,4]
[319431265,1710736284501,-500.0,0.00031232,4]
[319431266,1710736284510,-1859.01,0.00031232,4]
[319431267,1710736284519,-998.14,0.00031232,4]
[319431268,1710736284528,-500.0,0.00031232,4]
[319431269,1710736284538,-712.78,0.00031232,4]
[319431270,1710736284547,-3134.02,0.00031232,4]
[319431271,1710736284555,-720.74,0.00031232,4]
[319431272,1710736284565,-500.0,0.00031232,4]
[319431273,1710736284574,-835.55,0.00031232,4]
[319431274,1710736284584,-500.0,0.00031232,4]
[319431275,1710736284593,-794.41,0.00031232,4]
[319431276,1710736284603,-3743.94,0.00031232,4]
[319431277,1710736284612,-500.0,0.00031232,4]
[319431278,1710736284622,-642.05,0.00031232,4]
[319431279,1710736284631,-500.0,0.00031232,4]
[319431280,1710736284640,-1113.65,0.00031232,4]
[319431281,1710736284649,-589.6,0.00031232,4]
[319431282,1710736284658,-500.0,0.00031232,4]
[319431283,1710736284668,-500.0,0.00031232,4]
[319431284,1710736284677,-633.04,0.00031232,4]
[319431285,1710736284686,-512.73,0.00031232,4]
[319431286,1710736284695,-774.64,0.00031232,4]
[319431287,1710736284705,-1524.04,0.00031232,4]
[319431288,1710736284714,-1898.65,0.00031232,4]
[319431289,1710736284723,-1586.83,0.00031232,4]
[319431290,1710736284736,-500.0,0.00031232,4]
[319431291,1710736284745,-500.0,0.00031232,4]
[319431292,1710736284754,-500.0,0.00031232,4]
[319431293,1710736284763,-833.34,0.00031232,4]
[319431294,1710736284773,-1329.2,0.00031232,4]
[319431295,1710736284782,-500.0,0.00031232,4]
[319431296,1710736284791,-501.93,0.00031232,4]
[319431297,1710736284800,-500.0,0.00031232,4]
[319431298,1710736284809,-574.74,0.00031232,4]
[319431299,1710736284818,-500.0,0.00031232,4]
[319431300,1710736284828,-500.0,0.00031232,4]
[319431301,1710736284838,-500.0,0.00031232,4]
[319431302,1710736284848,-899.79,0.00031232,4]
[319431303,1710736284857,-500.0,0.00031232,4]
[319431304,1710736284866,-836.63,0.00031232,4]
[319431305,1710736284875,-663.74,0.00031232,4]
[319431306,1710736284884,-1143.03,0.00031232,4]
[319431307,1710736284893,-500.0,0.00031232,4]
[319431308,1710736284903,-506.98848503,0.00031232,4]
[319431309,1710736284912,-312.30799246,0.00031232,4]
[319431310,1710736284922,-1917.2,0.00031232,4]
[319431311,1710736284931,-1716.33,0.00031232,4]
[319431312,1710736284941,-1304.54,0.00031232,4]
[319431313,1710736284950,-500.0,0.00031232,4]
[319431314,1710736284959,-705.47,0.00031232,4]
[319431315,1710736284968,-500.0,0.00031232,4]
[319431316,1710736284977,-794.56,0.00031232,4]
[319431317,1710736284987,-282.85669052,0.00031232,4]
[319431318,1710736284997,-500.0,0.00031232,4]
[319431319,1710736285006,-500.0,0.00031232,4]
[319431320,1710736285016,-500.0,0.00031232,4]
[319431321,1710736285025,-2333.6,0.00031232,4]
[319431322,1710736285034,-758.7,0.00031232,4]
[319431323,1710736285044,-588.98,0.00031232,4]
[319431324,1710736285054,-560.65,0.00031232,4]
[319431325,1710736285063,-1061.17,0.00031232,4]
[319431326,1710736285072,-500.0,0.00031232,4]
[319431327,1710736285082,-500.0,0.00031232,4]
[319431328,1710736285091,-1095.12,0.00031232,4]
[319431329,1710736285101,-500.0,0.00031232,4]
[319431330,1710736285110,-500.0,0.00031232,4]
[319431331,1710736285119,-2145.95,0.00031232,4]
[319431332,1710736285129,-500.0,0.00031232,4]
[319431333,1710736285138,-1627.27,0.00031232,4]
[319431334,1710736285147,-500.0,0.00031232,4]
[319431335,1710736285156,-500.0,0.00031232,4]
[319431336,1710736285166,-500.0,0.00031232,4]
[319431337,1710736285176,-500.0,0.00031232,4]
[319431338,1710736285186,-2012.26,0.00031232,4]
[319431339,1710736285196,-1352.76,0.00031232,4]
[319431340,1710736285205,-500.0,0.00031232,2]
[319431341,1710736285215,-537.95,0.00031232,4]
[319431342,1710736285225,-500.0,0.00031232,4]
[319431343,1710736285236,-500.0,0.00031232,4]
[319431344,1710736285245,-2747.25,0.00031232,4]
[319431345,1710736285254,-606.33,0.00031232,4]
[319431346,1710736285263,-500.0,0.00031232,4]
[319431347,1710736285272,-500.0,0.00031232,4]
[319431348,1710736285282,-500.0,0.00031232,4]
[319431349,1710736285291,-500.0,0.00031232,4]
[319431350,1710736285300,-500.0,0.00031232,4]
[319431351,1710736285309,-500.0,0.00031232,4]
[319431352,1710736285319,-500.0,0.00031232,4]
[319431353,1710736285329,-500.0,0.00031232,4]
[319431354,1710736285338,-554.01,0.00031232,4]